Cogmind - Beta 16 @@@ ROGUE MODE // 2025.12.24 @ 14:19:27 Player: Arttano Result: Destroyed by DY-GSQ(R) with Subdweller Machine Gun Performance ------------- Evolutions (0) 0 Regions Visited (3) 600 Robots Destroyed (25) 125 Value Destroyed (573) 573 Prototype IDs (0) 0 Alien Tech Used (0) 0 Bonus (-154) -154 TOTAL SCORE: 1144 Bonus ------- Friendly Fire -154 Cogmind --------- Core Integrity 0/250 Matter 273/300 Energy 78/100 System Corruption 0% Temperature Cool (0) Movement Core (350) Ox6 Location -10/Subcaves Parts ------- > --- POWER (1) -------- (None) > --- PROPULSION (2) --- (None) > --- UTILITY (2) ------ Large Storage Unit Seismic Detector > --- WEAPON (2) ------- (None) > --- INVENTORY (15) --- Ion Engine Light Ion Engine Light Ion Engine Subdweller Power Source Improved Aluminum Leg Improved Aluminum Leg Hover Unit Hover Unit Disposable Heat Sink Huge Storage Unit Subdweller Optics Small Laser Peak State ------------ > --- POWER ------------ Ion Engine > --- PROPULSION ------- Improved Aluminum Leg Improved Aluminum Leg > --- UTILITY ---------- Large Storage Unit Seismic Detector > --- WEAPON ----------- Barrage Gun Grenade Launcher > --- INVENTORY -------- Ion Engine Light Ion Engine Light Ion Engine Subdweller Power Source Improved Aluminum Leg Improved Aluminum Leg Hover Unit Hover Unit Disposable Heat Sink Huge Storage Unit Subdweller Optics Small Laser Light Assault Rifle Light Assault Rifle [Rating: 12] Favorites ----------- Power Ion Engine Engine Ion Engine Propulsion Improved Aluminum Leg Treads Light Treads Leg Improved Aluminum Leg Utility Small Storage Unit Device Seismic Detector Storage Small Storage Unit Processor Targeting Computer Weapon Light Assault Rifle Energy Gun Medium Laser Ballistic Gun Light Assault Rifle Launcher Grenade Launcher Build | -11 -10 -10 -10 ------- Run | Yrd Mat Min Sub Slots Evolved . | . . . . Power . | . . . . Propulsion . | . . . . Utility . | . . . . Weapon . | . . . . Parts Attached 26 | 9 13 3 1 Power 5 | 2 2 1 . Engine 5 | 2 2 1 . Core . | . . . . Reactor . | . . . . Propulsion 8 | 3 5 . . Treads 2 | 2 . . . Leg 6 | 1 5 . . Wheel . | . . . . Hover . | . . . . Flight . | . . . . Utility 7 | 1 5 1 . Device 1 | . 1 . . Storage 4 | 1 2 1 . Processor 2 | . 2 . . Hackware . | . . . . Protection . | . . . . Artifact . | . . . . Weapon 6 | 3 1 1 1 Energy Gun 2 | 2 . . . Energy Cannon . | . . . . Ballistic Gun 3 | 1 . 1 1 Ballistic Cannon . | . . . . Launcher 1 | . 1 . . Special Weapon . | . . . . Impact Weapon . | . . . . Slashing Weapon . | . . . . Piercing Weapon . | . . . . Special Melee Weapon . | . . . . Unidentified Prototypes . | . . . . Parts Lost 10 | . 3 . 7 Power 1 | . . . 1 Propulsion 3 | . 1 . 2 Utility 1 | . 1 . . Weapon 5 | . 1 . 4 Highest Loss Streak 7 | . 3 . 7 To Critical Strikes . | . . . . Average Backups 8 | 3 6 9 12 Power 2 | . 2 3 4 Propulsion 2 | 1 2 3 4 Utility 1 | . 1 1 2 Weapon 1 | . . 1 2 Tool/Special . | . . . . Unused Backups 13 | . 4 . 9 Power 2 | . . . 2 Propulsion 6 | . 2 . 4 Utility 4 | . 1 . 3 Weapon 1 | . 1 . . Tool/Special . | . . . . Average Slot Usage (%) 99 | . 98 100 99 Engine 13 | . 14 14 13 Treads 7 | . 13 . . Leg 20 | . 14 28 27 Device 7 | . 2 14 14 Storage 14 | . 14 14 14 Processor 6 | . 10 . . Energy Gun 7 | . 12 . . Ballistic Gun 14 | . 14 14 14 Launcher 6 | . 1 14 13 Peak Build Rating 12 | 6 10 10 12 Average Rating 8 | 4 7 10 10 On Entrance 6 | . 6 10 10 Avg Prop Armor Cover (%) 13 | 14 13 . . Naked Turns . | . . . . Heaviest Build 32 | 13 15 30 32 Greatest Support 40 | 40 40 26 26 Greatest Overweight (x) 6 | 1 1 1 6 Average Overweight (x) . | . . . 1 Largest Inventory Capacity 25 | 8 25 15 15 Average Capacity 10 | 7 8 13 15 Most Carried 15 | 4 8 11 15 Average Carried 8 | 3 6 9 13 Final Capacity 15 | 8 8 15 15 Final Carried 12 | 4 8 11 12 Class Distribution -------------------- 100% | Mutant Dominant Class ---------------- Mutant | -10/Materials Mutant | -10/Mines Mutant | -10/Subcaves Resources | -11 -10 -10 -10 ----------- Run | Yrd Mat Min Sub Matter Collected 573 | 259 179 77 58 Remotely . | . . . . Salvage Created 711 | . 515 5 191 Parts 54 | . 39 4 11 Haulers Intercepted . | . . . . Recyclers Shooed . | . . . . Parts Field Recycled . | . . . . Retrieved Matter . | . . . . Parts Self-Destructed . | . . . . Prevented . | . . . . Parts Restored . | . . . . Kills | -11 -10 -10 -10 ------- Run | Yrd Mat Min Sub Combat Hostiles Destroyed 21 | . 14 3 4 Guns 14 | . 14 . . AOE 7 | . . 3 4 Classes Destroyed 6 | . 4 . 2 Recycler 1 | . 1 . . Watcher 2 | . 2 . . Swarmer 9 | . 6 3 . Grunt 8 | . 8 . . Subdweller 4 | . . . 4 Guerrilla 1 | . . . 1 Best Kill Streak 4 | . 4 3 2 Combat Bots Only 3 | . 3 3 2 Max Kills in Single Turn 2 | . 1 2 2 Gunslinging . | . . . . Exploded 2 | . . 2 2 Melee . | . . . . Uniques/NPCs Destroyed . | . . . . Combat | -11 -10 -10 -10 -------- Run | Yrd Mat Min Sub Hostile Shots Fired 121 | . 84 5 32 Missed 20 | . 16 1 3 Hits 101 | . 68 4 29 Projectile 101 | . 68 4 29 AOE 1 | . . . 1 Critical Strikes 1 | . . . 1 Damage Taken 1491 | . 722 73 696 Core 273 | . 138 27 108 Absorbed by Shields . | . . . . Core Remaining (%) 100 | 100 . . . Volleys Fired 50 | . 43 2 5 Largest 2 | . 2 2 2 Hottest 70 | . 70 50 58 Shots Fired 99 | . 86 4 9 Gun 93 | . 86 2 5 Cannon . | . . . . Launcher 6 | . . 2 4 Special . | . . . . Kinetic 50 | . 43 2 5 Thermal 43 | . 43 . . Explosive 6 | . . 2 4 Electromagnetic . | . . . . Robot Hit Streak 10 | . 10 1 5 Robot Miss Streak 2 | . 2 1 1 Penetration Max . | . . . . Secondary Targets 2 | . 2 . . Max Gunslinging Chain 1 | . 1 . . Shots Hit Robots 66 | . 59 1 6 Core Hits 46 | . 32 4 10 Critical Kills . | . . . . Critical Parts Destroyed . | . . . . Critical Strikes 2 | . 2 . . Burn 2 | . 2 . . Melee Attacks . | . . . . Impact . | . . . . Slashing . | . . . . Piercing . | . . . . Sneak Attacks . | . . . . Combat Hostiles . | . . . . Follow-up Attacks . | . . . . Damage Inflicted 1913 | . 619 224 1070 Guns 669 | . 606 . 63 Cannons . | . . . . Explosions 1212 | . . 205 1007 Melee . | . . . . Ramming 32 | . 13 19 . Kinetic 277 | . 214 . 63 Thermal 392 | . 392 . . Explosive 1212 | . . 205 1007 Electromagnetic . | . . . . Impact . | . . . . Slashing . | . . . . Piercing . | . . . . Highest Corruption . | . . . . Average Corruption . | . . . . Corruption Purged . | . . . . Corruption Blocked . | . . . . Overload Shots . | . . . . Overflow Damage . | . . . . Projectiles . | . . . . Explosions . | . . . . Melee . | . . . . Knockbacks . | . . . . Impact . | . . . . Kinetic . | . . . . Secondary . | . . . . Self-Inflicted Damage 56 | . . 46 10 Shots 3 | . . 2 1 Rammed 2 | . 2 . . Targets Rammed 8 | . 4 4 . Kicked 5 | . 1 4 . Crushed 1 | . 1 . . Highest Temperature 230 | . 230 10 1 Average Temperature 62 | . 64 7 1 Received Heat Transfer 339 | . 279 . 60 Siege Activations . | . . . . Martial Activations . | . . . . Shielding Activations . | . . . . Robots Disrupted . | . . . . Combat Hostiles . | . . . . Robots Corrupted . | . . . . Combat Hostiles . | . . . . Parts Fried . | . . . . Impact Corruptions . | . . . . Robots Melted . | . . . . Combat Hostiles . | . . . . Parts Melted . | . . . . Heat Transferred 1118 | . 1118 . . Parts Sabotaged . | . . . . Parts Stolen . | . . . . Parts Stripped . | . . . . Power Chain Reactions . | . . . . Alert | -11 -10 -10 -10 ------- Run | Yrd Mat Min Sub Maximum Alert Level . | . . . . Low Security (%) 100 | 100 100 100 . Level 1 . | . . . . Level 2 . | . . . . Level 3 . | . . . . Level 4 . | . . . . Level 5 . | . . . . High Security . | . . . . Max Security . | . . . . Peak Influence 109 | . 109 80 . Initial 14 | . . 14 . Average 23 | . 30 11 . Influence Increases 505 | . 425 80 . Destroy 0b10 Robot/C 340 | . 280 60 . Destroy 0b10 Robot/NC 15 | . 15 . . Destroy Leader 74 | . 64 10 . Successful Hack 21 | . 21 . . Destroy Structure 10 | . . 10 . Lose Combat Pursuer 45 | . 45 . . Influence Decreases 505 | . 388 117 . Entered New Map 23 | . . 23 . Time Decay 349 | . 255 94 . Lost Part 30 | . 30 . . Purge Threat 103 | . 103 . . Squads Dispatched 5 | . 5 . . Investigation 4 | . 4 . . Extermination . | . . . . Reinforcement 1 | . 1 . . Assault . | . . . . Garrison . | . . . . Intercept . | . . . . Searches Triggered . | . . . . Construction Impeded . | . . . . Haulers Reinforced . | . . . . Active Scanning Responses . | . . . . Cargo Convoy Interrupts . | . . . . Stealth | -11 -10 -10 -10 --------- Run | Yrd Mat Min Sub Distress Signals 1 | . 1 . . Communications Jammed . | . . . . Distress Signals . | . . . . Times Spotted 41 | . 21 3 17 Peak Tracking Total 12 | . 4 3 12 Tactical Retreats 2 | . 2 . . Traps | -11 -10 -10 -10 ------- Run | Yrd Mat Min Sub Traps Triggered 1 | . 1 . . Indirectly . | . . . . Trap Hack Attempts . | . . . . Triggered . | . . . . Disarmed . | . . . . Reprogrammed . | . . . . Reused . | . . . . Traps Extracted . | . . . . Installed . | . . . . Triggered . | . . . . Machines | -11 -10 -10 -10 ---------- Run | Yrd Mat Min Sub Machines Disabled . | . . . . Max in Single Turn . | . . . . Machines Repaired . | . . . . Machines Dismantled . | . . . . Machines Sabotaged . | . . . . Overloaded Fab Kills . | . . . . Hacking | -11 -10 -10 -10 --------- Run | Yrd Mat Min Sub Machines Accessed 8 | . 8 . . Terminals 7 | . 7 . . Fabricators . | . . . . Repair Stations . | . . . . Recycling Units 1 | . 1 . . Scanalyzers . | . . . . Garrison Access . | . . . . Total Hacks 29 | . 29 . . Successful 11 | . 11 . . Failed 18 | . 18 . . Catastrophic 8 | . 8 . . Database Lockouts . | . . . . Manual 16 | . 16 . . Terminals 28 | . 28 . . Fabricators . | . . . . Repair Stations . | . . . . Recycling Units 1 | . 1 . . Scanalyzers . | . . . . Garrison Access . | . . . . Terminal Hacks 8 | . 8 . . Record 3 | . 3 . . Emergency Access Points 1 | . 1 . . Terminal Index 1 | . 1 . . Alert Level 1 | . 1 . . Unreport Threat 1 | . 1 . . Recall Investigation 1 | . 1 . . Fabricator Hacks . | . . . . Repair Station Hacks . | . . . . Recycling Unit Hacks 1 | . 1 . . Report Inventory 1 | . 1 . . Scanalyzer . | . . . . Garrison Access Hacks . | . . . . Unauthorized Hacks 2 | . 2 . . Terminals 2 | . 2 . . Track 2 | . 2 . . Fabricators . | . . . . Repair Stations . | . . . . Recycling Units . | . . . . Scanalyzers . | . . . . Garrison Access . | . . . . Data Cores Recovered . | . . . . Used . | . . . . Hacking Detections 7 | . 7 . . Full Trace Events 3 | . 3 . . Feedback Events . | . . . . Feedback Blocked . | . . . . Robot Schematics Acquired . | . . . . Robots Built . | . . . . Authchips . | . . . . Time . | . . . . Total Robot Build Rating . | . . . . Part Schematics Acquired . | . . . . Parts Built . | . . . . Authchips . | . . . . Time . | . . . . Total Part Build Rating . | . . . . Part Studies Acquired . | . . . . Parts Repaired . | . . . . Time . | . . . . Parts Recycled . | . . . . Recycled Matter . | . . . . Retrieved Matter . | . . . . Retrieved Components . | . . . . Parts Scanalyzed . | . . . . Part Schematics Acquired . | . . . . Parts Damaged . | . . . . Bothacking | -11 -10 -10 -10 ------------ Run | Yrd Mat Min Sub Used RIF Installer . | . . . . Robots Hacked . | . . . . Non-combat . | . . . . Combat . | . . . . Robot Hacks Applied . | . . . . Relay Couplers Released . | . . . . Fabnet Peak Effective % . | . . . . Robots Rewired . | . . . . Allies Hacked . | . . . . Hacks Repelled . | . . . . Allies | -11 -10 -10 -10 -------- Run | Yrd Mat Min Sub Total Allies . | . . . . Largest Group . | . . . . Highest-Rated Group . | . . . . Highest-Rated Ally . | . . . . Total Orders . | . . . . Ally Attacks . | . . . . Total Damage . | . . . . Kills . | . . . . Allies Corrupted . | . . . . Allies Melted . | . . . . Intel | -11 -10 -10 -10 ------- Run | Yrd Mat Min Sub Active Infowar (turns) 1414 | . 249 768 397 Seismic 1414 | . 249 768 397 Robot Analysis Total . | . . . . Derelict Logs Recovered 1 | . . 1 . Drone Launches . | . . . . Drone Recoveries . | . . . . Exploration | -11 -10 -10 -10 ------------- Run | Yrd Mat Min Sub Turns Passed 2843 | 110 1568 768 397 Spaces Moved 1384 | 54 692 448 190 Core 5 | 4 . . 1 Treads 222 | 37 185 . . Legs 1157 | 13 507 448 189 Wheels . | . . . . Hover . | . . . . Flight . | . . . . Fastest Speed 50 | 50 120 120 190 Average Speed 151 | 157 130 166 190 Slowest Speed 350 | 190 190 190 350 Overloaded Moves . | . . . . Propulsion Burnouts . | . . . . Robots Hopped . | . . . . Potential Cave-ins . | . . . . Cave-ins Triggered . | . . . . Exploration Rate (%) 49 | 4 95 84 13 Regions Visited 3 Branch Regions 2 Pre-discovered Areas . | . . . . Known Exits Taken . | . . . . Unknown Exits Taken 3 | 1 1 1 . Scrap Searched 2 | . . 2 . Spaces Dug . | . . . . Terrain Destroyed 25 | . . 12 13 Melee . | . . . . Projectile . | . . . . AOE 25 | . . 12 13 Terrain Rammed . | . . . . Walls Destroyed . | . . . . Machines Disabled . | . . . . Actions | -11 -10 -10 -10 --------- Run | Yrd Mat Min Sub Total 2034 | 74 1278 463 219 Wait 528 | 9 503 2 14 Move 1381 | 53 691 447 190 Hop . | . . . . Pick Up 23 | 3 12 3 5 Fast Attach 8 | 6 2 . . Attach 4 | . 2 . 2 Detach . | . . . . Swap 18 | 3 10 4 1 Drop 14 | . 11 1 2 Fire 50 | . 43 2 5 Melee . | . . . . Ram . | . . . . Kick 5 | . 1 4 . Crush 3 | . 3 . . Escape Stasis . | . . . . Rewire . | . . . . Trap . | . . . . Miscellaneous . | . . . . Route ------- -11/Scrapyard -10/Materials (discovered 4 exits: [*Mat x3] / [*Min]) -10/Mines (discovered 2 exits: [*Mat] / [*Sub]) -10/Subcaves History --------- Turn | Location | Event 19 | -11/Scrapyard | Discovered new exit (range 15) 111 | -11/Scrapyard | Entered Materials 312 | -10/Materials | Build established: Mutant 794 | -10/Materials | Discovered new exit (range 14) 861 | -10/Materials | Lost 3 parts (1n1u1w) 1067 | -10/Materials | Discovered new exit (range 16) 1376 | -10/Materials | Core integrity fell below 50% 1446 | -10/Materials | Discovered new exit (range 4) 1645 | -10/Materials | Discovered new exit (range 12) 1679 | -10/Materials | Entered Mines 1715 | -10/Mines | Learned location of 1 exit from Materials 1736 | -10/Mines | Discovered new exit (range 16) 1803 | -10/Mines | Met a Derelict bent on vengeance 2434 | -10/Mines | Discovered new exit (range 9) 2447 | -10/Mines | Entered Subcaves 2831 | -10/Subcaves | Ambushed by swarm of Subdwellers 2831 | -10/Subcaves | Ambushed by Subdwellers from Twisted Machinery 2831 | -10/Subcaves | Ambushed by Subdwellers from Twisted Machinery 2831 | -10/Subcaves | Ambushed by Subdwellers from Twisted Machinery 2831 | -10/Subcaves | Ambushed by Subdwellers from Twisted Machinery 2831 | -10/Subcaves | Ambushed by Subdwellers from Twisted Machinery 2831 | -10/Subcaves | Ambushed by Subdwellers from Twisted Machinery 2839 | -10/Subcaves | Core integrity fell below 20% 2844 | -10/Subcaves | Destroyed by DY-GSQ(R) with Subdweller Machine Gun Last Messages --------------- 02831_ HV Slug penetrates XJ-EFE(R). 02831_ XJ-EFE(R) suffers critical hit (Destroy). 02831_ XJ-EFE(R) destroyed. 02831_ AP-99L(R) suffers critical hit (Destroy). 02831_ AP-99L(R) knocked back. 02834_ 4L-NSL(h) destroyed. [Achievement: Backstab] 02834_ Imp. Aluminum Leg destroyed. 02835_ R1-A62(g): "Sorry we're late! Had another grouchy Sub to deal with. Who's the new fellow?" 02837_ 81-XUN(R) destroyed. 02837_ Grenade Launcher destroyed. 02839_ Ion Engine destroyed. 02840_ Barrage Gun destroyed. 02840_ Imp. Aluminum Leg destroyed. 02841_ Lgt. Assault Rifle destroyed. 02842_ KN-7EJ(R) destroyed. 02842_ Lgt. Assault Rifle destroyed. 02843_ WN-JEK(R) destroyed. Map ----- +----------------------------------------------------+ | ??# ##???????????????????????????????????????? | | ??# #????????????????????????????????????????? | | ??# #????????????????????????????????????????? | | ??# ###????????????????????????????????????????? | | ?## ##??????????????????????????????????????????? | | ?# ##??????????????????????????????????????????? | | ?# #??????????????????????????????????????????? | | ?# #####??????????????????????????????????????? | | ### ## #??????????????????????????????????????? | | # ## #???????????###????????????????????????? | | #???####???# #????????????????????????? | | ##?## ##?## #????????????????????????? | | ## ### ### #????????????????????????? | | ### """## #????????????????????????? | | # ### " "" #????????????????????????? | | ### ## """"" #????####?????????????????? | | ??## ### #???? #?????????????????? | | ???#""?# g #?? #?????????????????? | | ???#"""" " ;; g #?? #?????????????????? | | ???## "" """ ### g #?? #?????????????????? | | ????##"" " ##?# ### #?????????????????? | | ?????#"" # #??# #?????????????????? | | ???? "" #??## RR #??????????????????? | | ???? "" #??# ]R% ;# ##??????????????????? | | ???? ### ##???# R R ;#?????????????????????? | | ???????# #????# =RR @;#?????????????????????? | | ??????? ????# ] R ##?????????????????????? | | ??????" ??# R #??????????????????????? | | ??????# ### ?# ??????????????????????? | | ???????#??## ?????????????????????? | | ????????????# | ????????????????????? | | ????????????# ## ???????????????????? | | ????????????# ###?# #??????????????????? | | ???????????? ????# ##??????????????????? | | ??????????? ?????# #####???????????????????? | | ????????????? ?????#####???????????????????????? | | ?????????????????????????????????????????????????? | | ?????????????????????????????????????????????????? | | ?????????????????????????????????????????????????? | | ?????????????????????????????????????????????????? | | ?????????????????????????????????????????????????? | | ?????????????????????????????????????????????????? | | ?????????????????????????????????????????????????? | | ?????????????????????????????????????????????????? | | ?????????????????????????????????????????????????? | | ?????????????????????????????????????????????????? | | ?????????????????????????????????????????????????? | | ?????????????????????????????????????????????????? | | ?????????????????????????????????????????????????? | | ?????????????????????????????????????????????????? | +----------------------------------------------------+ Best States ------------- Heat Dissipation 25 Energy Generation 10 Energy Capacity 250 Matter Stores 300 Matter Capacity 300 Sight Range 16 Terrain Scan Density 10 Evasion (%) 55 Targeting Accuracy 5 Recoil Reduction 2 Item Schematics ----------------- None Robot Schematics ------------------ None Fabricated ------------ Nothing Repaired ---------- Nothing Studied --------- None Alien Tech Used ----------------- None Achievements -------------- Backstab Challenges ------------ None Game ------ Seed BattleTitaniumReactor Manual? 0 Play Time 00:35:41 Cumulative 4.6 hours Start 2025.12.23 @ 22:24:16 End 2025.12.24 @ 14:19:27 Sessions 3 Manual Loads 0 Difficulty Rogue Special Mode None Game No. 5 Rogue 5 Adventurer 0 Explorer 0 Win Type - Total 0 Types 0/0/0/0/0/0/0/0/0/0 Lore% 5 Gallery% 5 Achievement% 8 Wizard Run 0 Options --------- Layout 2 ASCII 0 Keyboard 0 Movement Numpad Keybinds 0 Fullscreen 2 Font 24/Smallcaps Map View 50x44 Zoom Use 0% Tactical HUD 1 Map Filters NONE Filters NONE Steam 1 RUN: f5f61edf-7830-4859-8fd3-c67b1f48428a